bitfinex/quotes_ETHUSD_20240821
["timestamp","ask_amount","ask_price","bid_price","bid_amount"]
[1724209796611,4.0691,2596.8,2596.3,0.55]
[1724209796812,0.08506707,2596.7,2596.1,0.55]
[1724209797178,4.0691,2596.8,2596.1,0.55]
[1724209797527,0.08506707,2596.7,2596.2,1.672]
[1724209797676,0.08506707,2596.7,2596.3,0.55]
[1724209797877,2.3971,2596.8,2596.3,0.55]
[1724209798190,2.3971,2596.8,2596.0,9.69959346]
[1724209798191,0.08506707,2596.7,2596.0,7.30749346]
[1724209798385,2.49756707,2596.7,2596.3,1.672]
[1724209798606,2.4125,2597.1,2596.4,0.55]
[1724209798805,0.08506707,2596.6,2596.4,0.55]
[1724209799008,2.4125,2597.1,2596.4,0.55]
[1724209799337,0.08506707,2597.0,2596.4,0.55]
[1724209799613,0.08506707,2597.0,2596.5,1.672]
[1724209799815,0.08506707,2597.0,2596.7,1.672]
[1724209799977,0.08506707,2597.0,2596.9,4.1552]
[1724209800177,7.07e-06,2597.0,2596.9,7.50560607]
[1724209800413,3.34674402,2598.4,2597.0,2.4832]
[1724209800414,2.268,2598.1,2597.0,2.4832]
[1724209800578,2.268,2598.1,2597.6,1.672]
[1724209800888,0.0792015,2598.0,2597.6,1.672]
[1724209801099,2.3835,2598.6,2597.8,1.672]
[1724209801300,0.0792015,2598.5,2598.1,1.672]
[1724209802175,0.0792015,2598.5,2598.2,0.07696856]
[1724209802376,0.0792015,2598.5,2598.1,1.672]
[1724209802575,0.0792015,2598.5,2597.9,1.8942]
[1724209802817,0.0792015,2598.5,2598.0,0.55]
[1724209803514,0.0792015,2598.5,2598.0,1.0249]
[1724209808121,1.7512015,2598.5,2597.6,1.672]
[1724209808323,1.672,2598.3,2597.6,1.672]
[1724209808822,0.08081253,2598.2,2597.6,1.672]
[1724209809196,1.672,2598.3,2597.6,1.672]
[1724209809409,1.672,2598.3,2597.7,0.89794935]
[1724209809587,0.08081253,2598.2,2597.7,0.89794935]
[1724209809989,1.672,2598.3,2597.7,0.89794935]
[1724209810325,0.08081253,2598.2,2597.7,0.89794935]
[1724209810708,1.672,2598.3,2597.7,0.89794935]
[1724209811025,0.08081253,2598.2,2597.7,0.89794935]
[1724209811327,1.672,2598.3,2597.7,0.89794935]
[1724209811487,1.672,2598.3,2597.8,0.55]
[1724209811693,0.08081253,2598.2,2597.8,0.55]
[1724209811892,1.672,2598.3,2597.8,0.55]
[1724209812118,0.08081253,2598.1,2597.8,0.55]
[1724209812289,1.672,2598.3,2597.8,0.55]
[1724209812490,0.08081253,2598.0,2597.8,0.55]
[1724209812690,1.672,2598.3,2597.8,0.86199493]
[1724209812919,0.08081253,2597.9,2597.8,0.55]
[1724209813226,2.435,2598.4,2597.8,0.55]
[1724209813600,0.08081253,2598.3,2597.8,0.55]
[1724209819035,0.08081253,2598.3,2598.0,1.672]
[1724209819237,0.08081253,2598.3,2598.1,0.55]
[1724209819397,9.749,2598.7,2598.2,0.2222]
[1724209819599,2.479,2598.7,2598.2,0.2222]
[1724209819798,2.479,2598.7,2598.3,0.55]
[1724209823812,1.672,2598.9,2598.3,0.55]
[1724209824018,7.27,2599.5,2598.3,0.55]
[1724209824019,2.3055,2599.0,2598.3,2.9366]
[1724209824209,2.3055,2599.0,2598.4,0.48308]
[1724209829819,0.08235396,2598.9,2598.4,0.48308]
[1724209830020,0.08235396,2598.9,2598.4,0.56004032]
[1724209831232,0.08235396,2598.9,2598.4,0.48308]
[1724209831540,0.08235396,2598.9,2598.5,0.341968]
[1724209835646,1.75435396,2598.9,2598.5,0.341968]
[1724209841274,1.75435396,2598.9,2598.6,2.4201]
[1724209841275,0.08235396,2598.9,2598.6,2.4201]
[1724209841440,0.08235396,2598.9,2598.6,4.6421]
[1724209841645,4.672,2599.4,2598.7,0.4984068]
[1724209841864,0.08294028,2598.8,2598.7,0.4984068]
[1724209842059,1.672,2599.2,2598.7,0.4984068]
[1724209842254,0.08294028,2598.8,2598.7,0.4984068]
[1724209842462,1.672,2599.2,2598.7,0.4984068]
[1724209842637,0.08294028,2598.8,2598.7,0.4984068]
[1724209842838,1.672,2599.2,2598.7,0.4984068]
[1724209843037,0.08294028,2598.8,2598.7,0.4984068]
[1724209843257,1.672,2599.3,2598.7,0.4984068]
[1724209843456,1.672,2599.3,2598.8,0.55]
[1724209843770,1.672,2599.3,2598.8,0.95185068]
[1724209844760,0.08294028,2599.2,2598.8,0.95185068]
[1724209845072,1.672,2599.3,2598.8,0.95185068]
[1724209845237,0.08294028,2599.1,2598.9,2.4105]
[1724209845570,3.0,2599.4,2598.9,2.4105]
[1724209845766,0.08294028,2599.0,2598.9,2.4105]
[1724209845966,1.672,2599.3,2598.9,3.29673507]
[1724209846167,1.672,2599.3,2598.9,2.74673507]
[1724209846168,0.08294028,2599.2,2598.9,2.74673507]
[1724209846347,1.672,2599.3,2598.9,2.74673507]
[1724209846548,0.08294028,2599.2,2598.9,2.74673507]
[1724209846964,1.672,2599.3,2598.9,2.74673507]
[1724209847274,0.08294028,2599.2,2598.8,0.95185068]
[1724209847629,1.672,2599.3,2598.8,0.95185068]
[1724209847837,0.08294028,2599.1,2598.8,0.95185068]
[1724209848133,0.08294028,2599.0,2598.8,0.95185068]
[1724209848339,1.672,2599.3,2598.8,0.95185068]
[1724209848549,0.08294028,2599.2,2598.8,0.95185068]
[1724209848743,1.672,2599.3,2598.8,0.95185068]
[1724209848946,0.08294028,2599.2,2598.8,0.95185068]
[1724209849177,1.672,2599.3,2598.8,0.95185068]
[1724209849489,0.08294028,2599.1,2598.8,0.95185068]
[1724209849677,0.08294028,2599.1,2598.9,0.33826507]
[1724209849836,1.672,2599.3,2598.9,0.33826507]
[1724209850042,0.08294028,2599.0,2598.8,0.95185068]
[1724209850379,0.08294028,2598.9,2598.8,0.95185068]
[1724209850882,1.672,2599.3,2598.8,0.95185068]
[1724209851063,1.672,2599.1,2598.6,7.30749346]
[1724209851453,0.08349667,2599.0,2598.6,7.30749346]
[1724209851855,2.3318,2598.9,2598.6,7.30749346]
[1724209852055,2.41525693,2598.9,2598.6,7.30749346]
[1724209856260,2.41525693,2598.9,2598.5,0.341968]
[1724209859280,2.41525693,2598.9,2598.3,2.4505]
[1724209859521,2.41525693,2598.9,2598.4,0.55]
[1724209862066,4.08725693,2598.9,2598.4,0.55]
[1724209862261,4.08725693,2598.9,2598.3,0.55]
[1724209863688,2.3315,2598.8,2598.2,7.30749346]
[1724209863909,2.3315,2598.8,2598.3,0.95697935]
[1724209864209,0.0832483,2598.7,2598.3,0.95697935]
[1724209864609,2.3315,2598.8,2598.3,0.95697935]
[1724209864800,0.0832483,2598.6,2598.3,0.95697935]
[1724209864999,2.3315,2598.8,2598.3,0.95697935]
[1724209865185,0.0832483,2598.5,2598.4,0.82644728]
[1724209865509,2.3315,2598.8,2598.1,3.9343]
[1724209865714,2.3315,2598.8,2598.2,0.55]
[1724209865882,0.0832483,2598.7,2598.2,0.55]
[1724209873808,0.0832483,2598.7,2598.3,1.672]
[1724209874007,0.0832483,2598.7,2598.4,0.55]
[1724209874206,2.3315,2598.8,2598.5,0.2222]
[1724209874407,0.08290055,2598.7,2598.5,0.2222]
[1724209874793,2.3315,2598.8,2598.5,0.2222]
[1724209874994,0.08290055,2598.7,2598.5,0.2222]
[1724209875320,2.3947,2599.0,2598.5,0.2222]
[1724209875531,0.08290055,2598.6,2598.5,0.2222]
[1724209875692,2.3947,2599.0,2598.5,0.7722]
[1724209876027,0.08290055,2598.9,2598.6,0.55]
[1724209876525,0.08290055,2598.9,2598.7,2.16319]
[1724209876697,2.3947,2599.3,2598.8,3.0177]
[1724209876886,2.3947,2599.3,2598.9,1.672]
[1724209877086,2.3947,2599.3,2599.0,0.55]
[1724209877699,2.3947,2599.3,2598.9,0.55]
[1724209877900,2.3947,2599.3,2599.0,0.30177]
[1724209878103,2.3947,2599.3,2599.1,0.55]
[1724209879199,2.2931,2599.6,2599.1,0.55]
[1724209886023,2.2931,2599.6,2599.3,1.672]
[1724209886237,2.2543,2599.9,2599.3,1.672]
[1724209886438,2.2543,2599.9,2599.4,0.41464]
[1724209887256,2.2543,2599.9,2599.1,0.55]
[1724209887257,2.33133148,2599.8,2599.1,0.55]
[1724209887544,2.2543,2599.6,2599.1,0.55]
[1724209889711,0.08421182,2599.5,2599.1,0.55]
[1724209889909,0.08421182,2599.5,2599.2,0.78574935]
[1724209900221,2.3399,2599.8,2599.2,0.78574935]
[1724209900421,0.08421183,2599.7,2599.2,0.78574935]
[1724209901255,2.3399,2599.9,2599.2,0.78574935]
[1724209901456,0.08421183,2599.6,2599.3,0.55]
[1724209901799,0.08421183,2599.5,2599.3,0.55]
[1724209902008,2.3399,2599.9,2599.3,0.55]
[1724209902169,2.3399,2599.9,2599.3,1.10047493]
[1724209902170,0.08421183,2599.8,2599.3,1.10047493]
[1724209902693,0.08421183,2599.8,2599.3,2.77247493]
[1724209902879,0.08421183,2599.8,2599.4,2.3549]
[1724209903080,2.4501,2600.1,2599.5,0.55]
[1724209903281,0.08421183,2599.7,2599.5,0.55]
[1724209903475,2.4501,2600.1,2599.6,0.29049]
[1724209903672,1.672,2599.8,2598.8,2.473]
[1724209903878,2.2977,2599.7,2598.8,4.145]
[1724209904631,0.08436079,2599.6,2598.8,4.145]
[1724209904786,2.2977,2599.7,2598.8,4.145]
[1724209905101,0.08436079,2599.6,2599.1,0.55]
[1724209905285,0.08436079,2599.6,2599.2,0.78574935]
[1724209911385,2.2977,2599.7,2599.2,0.78574935]
[1724209911598,0.08433101,2599.6,2599.2,0.78574935]
[1724209911802,2.2977,2599.7,2599.2,0.78574935]
[1724209911974,0.08433101,2599.6,2599.2,0.78574935]
[1724209912170,2.2977,2599.7,2599.2,0.78574935]
[1724209912373,0.08433101,2599.6,2599.2,0.78574935]
[1724209912576,2.2977,2599.7,2599.2,0.78574935]
[1724209912809,0.08433101,2599.6,2599.2,0.78574935]
[1724209912994,2.2977,2599.7,2599.2,0.78574935]
[1724209913172,0.08433101,2599.6,2599.2,0.78574935]
[1724209913506,2.2977,2599.7,2599.2,0.78574935]
[1724209913892,0.08433101,2599.6,2599.2,0.78574935]
[1724209914406,2.2977,2599.7,2599.2,0.78574935]
[1724209914610,0.08433101,2599.6,2599.2,0.78574935]
[1724209917273,2.2977,2599.7,2599.2,0.78574935]
[1724209917718,0.08433101,2599.6,2599.2,0.78574935]
[1724209918214,2.2977,2599.7,2599.2,0.78574935]
[1724209918411,0.08433101,2599.6,2599.2,0.78574935]
[1724209920193,0.08433101,2599.6,2599.2,3.28304935]
[1724209920612,0.08433101,2599.6,2599.2,0.78574935]
[1724209920982,2.2977,2599.7,2599.2,0.78574935]
[1724209921218,0.08436081,2599.6,2599.2,0.78574935]
[1724209922276,0.08436081,2599.6,2599.1,0.55]
[1724209931022,2.2986,2599.5,2599.1,0.55]
[1724209931198,0.0843906,2599.4,2599.1,0.55]
[1724209933708,0.0843906,2599.4,2598.9,0.55]
[1724209934031,2.2986,2599.5,2598.9,0.55]
[1724209934332,0.0843906,2599.4,2599.0,0.2968]
[1724209934520,0.0843906,2599.4,2599.1,0.55]
[1724209934718,2.2986,2599.5,2599.1,0.55]
[1724209934918,0.0843906,2599.3,2599.1,0.55]
[1724209935217,0.0843906,2599.2,2599.1,0.55]
[1724209935418,2.2986,2599.5,2599.1,0.55]
[1724209935734,0.0843906,2599.4,2599.1,0.55]
[1724209941116,0.0843906,2599.4,2599.1,0.80188]
[1724209941326,3.9269,2599.3,2598.7,7.30749346]
[1724209941525,2.2549,2599.2,2598.7,7.30749346]
[1724209941955,2.83251212,2599.5,2598.7,7.30749346]
[1724209941956,2.2549,2599.0,2598.7,7.30749346]
[1724209942465,0.08447005,2598.9,2598.7,7.30749346]
[1724209944651,2.2549,2599.0,2598.7,7.30749346]
[1724209944944,0.08447005,2598.9,2598.7,7.30749346]
[1724209945540,2.4292,2599.2,2598.5,2.321]
[1724209945737,0.08447005,2598.8,2598.6,0.55]
[1724209945944,2.4978,2599.1,2598.6,0.55]
[1724209946238,0.08407275,2599.0,2598.6,0.55]
[1724209947825,2.3,2598.9,2598.6,0.55]
[1724209948162,2.3,2598.9,2598.4,0.55]
[1724209948336,2.3,2598.9,2598.4,1.44794935]
[1724209948337,0.08407275,2598.8,2598.4,1.44794935]
[1724209948745,2.3,2598.9,2598.4,1.44794935]
[1724209948943,0.08363574,2598.7,2598.4,1.44794935]
[1724209949253,2.3,2598.9,2598.5,0.87554428]
[1724209949434,0.08363574,2598.8,2598.6,0.55]
[1724209949641,2.3,2598.9,2598.6,0.55]
[1724209949851,0.08363574,2598.8,2598.6,0.55]
[1724209950028,2.3,2598.9,2598.6,0.55]
[1724209950229,0.08363574,2598.8,2598.6,0.55]
[1724209950541,2.3,2598.9,2598.6,0.55]
[1724209950956,0.08363574,2598.8,2598.6,0.55]
[1724209951158,0.08363574,2598.8,2598.6,0.85975443]
[1724209951473,2.3,2598.9,2598.6,0.85975443]
[1724209951795,0.08363574,2598.8,2598.6,0.85975443]
[1724209952088,2.3,2598.9,2598.6,0.85975443]
[1724209952307,2.3,2598.9,2598.6,0.55]
[1724209952453,0.08363574,2598.8,2598.6,0.55]
[1724209952661,2.3,2598.9,2598.6,0.55]
[1724209952988,0.08363574,2598.8,2598.6,0.55]
[1724209953410,1.672,2598.7,2598.3,7.30749346]
[1724209953542,2.8276925,2599.5,2598.3,7.30749346]
[1724209953543,2.4325,2598.6,2598.3,7.30749346]
[1724209953881,2.4325,2598.8,2598.3,1.672]
[1724209954056,0.08363574,2598.7,2598.5,1.672]
[1724209954249,2.4325,2599.0,2598.5,1.672]
[1724209954568,2.4325,2599.0,2598.3,1.672]
[1724209954569,0.08363574,2598.9,2598.3,1.672]
[1724209954739,0.08363574,2598.9,2598.4,0.55]
[1724209960044,2.2572,2598.8,2598.3,0.24376]
[1724209960266,0.08210442,2598.7,2598.3,0.24376]
[1724209960472,2.2572,2598.8,2598.3,0.24376]
[1724209960667,0.08210442,2598.7,2598.3,0.24376]
[1724209960868,2.2572,2598.8,2598.3,0.24376]
[1724209961278,0.28276925,2599.4,2598.3,4.20526]
[1724209961279,2.2572,2599.1,2598.3,4.20526]
[1724209961476,0.08205472,2599.0,2598.4,0.970526]
[1724209963086,2.2572,2598.9,2598.4,0.970526]
[1724209963472,0.08205472,2598.8,2598.4,0.55]
[1724209964886,0.08205472,2598.8,2597.9,7.30749346]
[1724209964887,2.33423148,2598.7,2597.9,9.59699346]
[1724209965096,2.33423148,2598.7,2598.0,0.55]
[1724209965097,2.2572,2598.7,2598.0,0.55]
[1724209965388,2.2572,2598.7,2598.0,1.48189935]
[1724209965716,2.38874539,2598.6,2598.0,1.48189935]
[1724209966214,2.3068,2598.6,2598.0,1.48189935]
[1724209966868,2.3068,2598.6,2598.1,0.55]
[1724209977615,2.29148057,2598.6,2598.1,0.55]
[1724209977819,2.29148057,2598.6,2598.1,1.88008928]
[1724209980322,1.672,2598.6,2598.1,1.33008928]
[1724209980547,1.672,2598.6,2597.9,7.30749346]
[1724209980548,1.672,2598.2,2597.9,7.30749346]
[1724209980685,2.2736,2598.1,2597.9,7.30749346]
[1724209984161,2.2736,2598.1,2597.6,1.672]
[1724209984342,2.2736,2598.1,2597.7,1.44794935]
[1724209991410,2.2736,2598.1,2597.7,0.55]
[1724209991741,2.2736,2598.1,2597.6,0.55]
[1724209991944,2.2736,2598.1,2597.1,2.4521]
[1724209992142,2.4937,2597.7,2597.1,2.4521]
[1724209992733,2.4937,2597.7,2597.1,4.1241]
[1724209993523,2.4937,2597.7,2597.1,2.4521]
[1724209993733,2.4937,2597.7,2597.0,8.97949346]
[1724209993933,2.4937,2597.7,2597.1,0.55]
[1724209995564,2.4937,2597.7,2597.2,1.672]
[1724209995895,2.4937,2597.7,2597.3,0.7722]
[1724209996448,1.672,2598.2,2597.4,1.672]
[1724209996627,2.4937544,2598.1,2597.5,0.55]
[1724209999429,2.4937544,2598.1,2597.8,1.672]
[1724209999670,0.0803544,2598.1,2597.8,1.672]
[1724209999968,2.4487,2598.3,2597.9,0.55]
[1724210000171,2.4487,2598.6,2598.0,1.672]
[1724210000334,0.08044393,2598.2,2598.1,0.7722]
[1724210000666,2.4487,2598.6,2598.1,0.7722]
[1724210001072,0.08045388,2598.5,2598.1,0.7722]
[1724210001277,0.08045388,2598.5,2598.2,1.672]
[1724210001455,0.08045388,2598.5,2598.3,0.55]
[1724210001774,2.4487,2598.8,2598.4,0.2222]
[1724210002655,2.4487,2598.8,2598.5,0.55]
[1724210004440,2.4911,2599.0,2598.5,0.55]
[1724210005637,2.4911,2599.0,2598.5,0.859]
[1724210008844,2.4911,2599.0,2598.5,0.55]
[1724210009046,4.1631,2599.0,2598.5,0.55]
[1724210009269,4.1631,2599.0,2598.3,0.55]
[1724210009775,2.52830911,2598.9,2598.3,0.55]
[1724210014389,2.60534059,2598.9,2598.3,0.55]
[1724210014561,3.03307465,2598.9,2598.3,0.55]
[1724210016643,1.672,2598.8,2598.3,0.55]
[1724210016847,2.3082,2598.7,2598.3,0.55]
[1724210017086,2.46686869,2598.7,2598.2,7.30749346]
[1724210017247,2.3082,2598.7,2598.2,7.30749346]
[1724210019448,2.3897,2598.9,2598.3,3.10094935]
[1724210019655,2.3897,2598.9,2598.4,2.222]
[1724210020464,0.08163721,2598.8,2598.4,0.55]
[1724210020656,0.08163721,2598.8,2598.5,0.36509494]
[1724210020862,2.3897,2598.9,2598.5,0.36509494]
[1724210021396,0.08163721,2598.8,2598.5,0.36509494]
[1724210021882,2.3897,2598.9,2598.5,0.36509494]
[1724210022263,0.08163721,2598.8,2598.5,0.36509494]
[1724210022770,1.672,2599.1,2598.5,0.36509494]
[1724210022771,3.9326,2599.1,2598.5,0.36509494]
[1724210023292,0.08163721,2599.0,2598.5,0.36509494]
[1724210024164,0.08163721,2599.0,2598.6,2.4647]
[1724210024362,0.08163721,2599.0,2598.7,0.28297949]
[1724210024565,0.08163721,2599.0,2598.6,2.4647]
[1724210026717,0.08163721,2599.0,2598.7,0.55]
[1724210027086,4.0251,2599.3,2598.7,0.55]
[1724210027617,0.08199507,2599.2,2598.7,0.55]
[1724210028295,0.08199507,2599.2,2599.0,1.672]
[1724210028604,2.4132,2599.9,2599.1,2.9617]
[1724210028822,2.4132,2599.9,2599.2,2.13537]
[1724210029049,2.4132,2599.9,2599.3,0.55]
[1724210033115,4.0891,2600.2,2599.4,1.672]
[1724210033316,4.0891,2600.2,2599.5,0.7722]
[1724210033829,4.0891,2600.2,2599.5,3.131]
[1724210034130,2.4171,2600.2,2599.5,3.131]
[1724210034326,2.4171,2600.2,2599.6,1.672]
[1724210034629,2.4171,2600.2,2599.7,0.55]
[1724210034792,2.4171,2600.2,2599.8,0.2222]
[1724210035796,2.4171,2600.2,2599.7,0.55]
[1724210036901,2.4171,2600.2,2599.6,0.55]
[1724210039724,0.08117851,2600.1,2599.6,0.55]
[1724210040128,1.75317851,2600.1,2599.6,0.55]
[1724210044149,2.4444,2600.0,2599.6,0.55]
[1724210044752,0.08117851,2599.9,2599.6,0.55]
[1724210045110,2.4444,2599.8,2599.6,0.55]
[1724210045336,1.672,2599.7,2599.4,7.30749346]
[1724210045511,2.4444,2599.6,2599.4,7.30749346]
[1724210045726,2.52562823,2599.6,2598.9,3.9589]
[1724210046845,2.52562823,2599.6,2599.0,0.55]
[1724210047054,2.52562823,2599.6,2599.1,1.672]
[1724210047352,2.52562823,2599.6,2599.2,0.55]
[1724210048934,0.08122823,2599.6,2599.2,0.55]
[1724210049259,2.4244,2599.8,2599.3,4.0923]
[1724210049460,0.08122823,2599.5,2599.4,0.55]
[1724210049617,2.4244,2600.0,2599.4,0.55]
[1724210049928,0.08122823,2599.5,2599.4,0.55]
[1724210050124,2.4244,2600.0,2599.4,1.01423]
[1724210050642,0.08122823,2599.9,2599.4,1.01423]
[1724210054384,4.1342,2600.1,2599.4,1.01423]
[1724210054537,0.08098959,2599.8,2599.4,0.55]
[1724210054875,0.08098959,2599.7,2599.4,0.55]
[1724210055080,4.1342,2600.1,2599.4,0.55]
[1724210055312,0.08104925,2599.6,2599.4,0.55]
[1724210055717,2.4368,2599.7,2599.2,0.55]
[1724210056014,0.08104925,2599.5,2599.2,0.95922]
[1724210056183,2.4368,2599.7,2599.2,0.95922]
[1724210056388,2.4368,2599.7,2599.3,0.505142]
[1724210056683,2.4368,2599.7,2599.4,0.55]
[1724210057097,0.08104925,2599.6,2599.4,0.55]
[1724210067868,2.4977,2599.9,2599.4,0.55]
[1724210068400,0.08105921,2599.8,2599.4,0.55]
[1724210068615,0.08105921,2599.8,2599.5,4.1107]
[1724210068799,4.1697,2600.4,2599.6,1.01607]
[1724210068972,0.08098961,2600.3,2599.6,1.01607]
[1724210069789,3.9582,2600.2,2599.6,1.01607]
[1724210070218,0.08098961,2600.1,2599.6,1.01607]
[1724210070444,3.9582,2600.2,2599.7,1.24342635]
[1724210070651,0.08098961,2600.0,2599.8,0.55]
[1724210070810,3.9582,2600.2,2599.8,0.55]
[1724210071010,0.08098961,2599.9,2599.8,0.55]
[1724210071344,3.9582,2600.2,2599.8,0.77594964]
[1724210071852,0.08098961,2600.1,2599.8,0.77594964]
[1724210075819,0.08098961,2600.1,2599.8,0.22594964]
[1724210076022,0.08098961,2600.1,2599.6,0.46607]
[1724210077851,0.08098961,2600.1,2599.6,2.81987]
[1724210078420,0.08098961,2600.1,2599.7,0.55]
[1724210080162,0.08098961,2600.1,2599.7,2.222]
[1724210084163,2.334,2600.4,2599.7,2.21674074]
[1724210084464,2.334,2600.4,2599.8,0.50366107]
[1724210084663,0.08112881,2600.3,2599.8,0.50366107]
[1724210086269,0.08112881,2600.3,2599.9,0.55]
[1724210086736,0.08112881,2600.3,2599.8,0.55]
[1724210087763,2.3196,2600.2,2599.8,0.55]
[1724210087964,2.3196,2600.2,2599.7,0.55]
[1724210088365,0.08112881,2600.1,2599.7,0.55]
[1724210089992,0.08112881,2600.1,2599.5,8.97949346]
[1724210089993,0.08112881,2600.1,2599.6,0.55]
[1724210090973,2.4527,2600.0,2599.6,0.55]
[1724210091291,0.08119841,2599.9,2599.6,0.55]
[1724210099660,2.4527,2600.0,2599.6,0.55]
[1724210099861,0.08116858,2599.8,2599.6,0.55]
[1724210100168,2.4527,2600.0,2599.6,0.7722]
[1724210100401,2.4527,2600.0,2599.6,0.55]
[1724210100727,0.08116858,2599.9,2599.4,0.55]
[1724210101136,2.4308,2599.8,2599.2,7.30749346]
[1724210101320,1.83020006,2599.9,2599.2,7.30749346]
[1724210101321,2.4308,2599.6,2599.2,7.30749346]
[1724210101523,2.84878315,2599.6,2598.9,7.30749346]
[1724210101722,2.51206801,2599.5,2598.9,7.30749346]
[1724210102098,4.18406801,2599.5,2598.9,7.30749346]
[1724210102527,2.51206801,2599.5,2598.9,7.30749346]
[1724210103610,2.51206801,2599.5,2598.9,9.87744281]
[1724210103798,2.82886466,2600.0,2599.1,3.969]
[1724210103799,2.4308,2599.7,2599.1,3.969]
[1724210103997,0.08126801,2599.6,2599.2,0.55]
[1724210104394,2.4308,2599.7,2599.2,0.55]
[1724210104625,0.08097963,2599.6,2599.2,0.7722]
[1724210106905,2.4308,2599.7,2599.2,0.7722]
[1724210107431,0.08106913,2599.6,2599.2,0.7722]
[1724210107615,2.4308,2599.7,2599.2,0.7722]
[1724210107813,0.08106913,2599.6,2599.2,0.7722]
[1724210108051,2.4308,2599.7,2599.3,0.24442]
[1724210108246,0.08106913,2599.6,2599.4,0.55]
[1724210108573,2.4308,2599.7,2599.4,0.55]
[1724210109068,0.08109897,2599.6,2599.4,0.55]
[1724210110138,0.08109897,2599.6,2599.2,0.55]
[1724210113677,2.419,2599.5,2599.2,0.55]
[1724210113879,2.419,2599.5,2599.0,2.222]
[1724210114074,0.07820511,2599.4,2599.0,2.222]
[1724210114281,2.419,2599.5,2599.0,0.55]
[1724210114658,4.091,2599.5,2599.0,0.55]
[1724210114976,2.3309,2599.3,2599.0,0.55]
[1724210115571,0.07820511,2599.2,2599.0,0.55]
[1724210115963,2.3309,2599.3,2599.0,0.55]
[1724210116368,0.07820511,2599.2,2599.0,0.55]
[1724210116764,2.3309,2599.3,2599.0,0.55]
[1724210116977,2.77287032,2599.3,2599.0,0.55]
[1724210117177,0.07787657,2599.2,2599.0,0.55]
[1724210117545,2.77287032,2599.3,2599.0,0.55]
[1724210117869,0.07788653,2599.2,2599.0,0.55]
[1724210118346,2.3309,2599.3,2598.9,0.55]
[1724210118540,2.3309,2599.3,2599.0,1.672]
[1724210118746,0.07788653,2599.2,2599.1,0.55]
[1724210119205,2.3309,2599.3,2599.1,0.55]
[1724210119539,0.07788653,2599.2,2599.1,0.55]
[1724210119742,2.3309,2599.3,2599.1,0.55]
[1724210120279,0.07788653,2599.2,2599.1,0.55]
[1724210120683,2.3309,2599.3,2599.1,0.55]
[1724210121086,2.3309,2599.3,2598.9,0.55]
[1724210121087,0.07788653,2599.2,2598.9,0.55]
[1724210121580,2.3309,2599.3,2598.9,0.55]
[1724210122082,0.07788653,2599.2,2598.9,0.55]
[1724210122392,2.3309,2599.3,2598.9,0.55]
[1724210122885,0.07788653,2599.2,2598.9,0.55]
[1724210123090,0.07788653,2599.2,2598.9,0.7722]
[1724210123287,2.3309,2599.3,2598.9,0.7722]
[1724210123781,0.07767746,2599.2,2598.9,0.7722]
[1724210124147,2.3309,2599.3,2598.9,0.7722]
[1724210124558,0.07767746,2599.2,2598.9,0.7722]
[1724210124757,0.07767746,2599.2,2599.0,0.24442]
[1724210124975,2.3309,2599.3,2599.1,0.55]
[1724210125373,0.07767746,2599.2,2599.1,0.55]
[1724210125747,2.3309,2599.3,2599.1,0.55]
[1724210126186,0.07767746,2599.2,2599.1,0.55]
[1724210126689,2.3309,2599.3,2599.1,0.55]
[1724210127136,0.07767746,2599.2,2599.1,0.55]
[1724210127409,2.4524,2599.8,2599.2,2.2547]
[1724210127568,7.27,2599.9,2599.5,1.672]
[1724210127765,0.07778698,2599.7,2599.5,1.672]
[1724210127967,2.4524,2600.0,2599.6,0.55]
[1724210129177,2.4524,2600.0,2599.4,0.55]
[1724210129504,2.4524,2600.0,2599.4,0.94267]
[1724210129706,0.07778698,2599.9,2599.4,0.94267]
[1724210131212,2.3648,2599.8,2599.4,0.55]
[1724210131768,0.07778698,2599.7,2599.4,0.55]
[1724210133871,2.3579,2600.0,2599.4,0.55]
[1724210134105,0.07778698,2599.6,2599.4,0.55]
[1724210134304,2.3579,2600.0,2599.4,0.55]
[1724210134514,0.07778698,2599.5,2599.4,0.9981]
[1724210134675,2.3579,2600.0,2599.4,0.9981]
[1724210135010,2.3579,2600.0,2599.5,1.672]
[1724210135206,2.3579,2600.0,2599.6,0.55]
[1724210136414,2.3579,2600.0,2599.4,0.55]
[1724210136623,0.40299,2599.9,2599.3,0.55]
[1724210137113,2.2553,2599.8,2599.3,0.55]
[1724210139627,0.40299,2599.9,2599.3,0.55]
[1724210139791,2.3228,2600.1,2599.4,4.056]
[1724210139991,3.217,2600.1,2599.5,0.55]
[1724210143028,3.217,2600.1,2599.4,2.222]
[1724210144728,0.07830462,2600.0,2599.4,2.222]
[1724210145792,2.317,2599.9,2599.4,0.55]
[1724210146107,2.317,2599.9,2599.2,0.55]
[1724210146291,0.07830462,2599.8,2599.1,2.3504]
[1724210146492,0.07830462,2599.8,2599.1,3.48338935]
[1724210146693,0.07830462,2599.8,2599.2,1.672]
[1724210146894,0.07830462,2599.8,2599.4,1.672]
[1724210147099,0.07830462,2599.8,2599.6,1.672]
[1724210147322,2.3573,2600.2,2599.6,1.672]
[1724210147630,0.07830462,2599.7,2599.6,1.672]
[1724210147861,2.3573,2600.2,2599.6,1.672]
[1724210148134,2.3573,2600.2,2599.6,2.222]
[1724210148318,0.07884211,2600.1,2599.7,0.55]
[1724210148517,0.07884211,2600.1,2599.7,0.94114338]
[1724210150805,0.07884211,2600.1,2599.7,0.55]
[1724210151138,0.07884211,2600.1,2599.6,0.55]